bitfinex-derivatives/quotes_BTCF0:USTF0_20241021
["timestamp","ask_amount","ask_price","bid_price","bid_amount"]
[1729474132811,0.04424491,69402.0,69401.0,0.108655]
[1729474133115,0.04424491,69402.0,69401.0,0.0366]
[1729474133602,0.04424491,69402.0,69401.0,0.0376]
[1729474134198,0.09594474,69403.0,69401.0,0.0376]
[1729474135605,1.472852,69404.0,69402.0,0.24355278]
[1729474135813,0.02188368,69407.0,69403.0,0.24355278]
[1729474136005,0.07205,69407.0,69404.0,0.24355278]
[1729474136313,0.07205,69406.0,69405.0,0.24355278]
[1729474136502,0.07205,69406.0,69405.0,0.10984849]
[1729474136702,1.43205,69406.0,69405.0,0.10984849]
[1729474136897,1.43205,69406.0,69405.0,0.24355243]
[1729474137106,1.43205,69406.0,69405.0,0.10984849]
[1729474137503,1.43605,69406.0,69405.0,0.10984849]
[1729474137702,1.43905,69406.0,69405.0,0.10984849]
[1729474138107,1.367,69406.0,69405.0,0.24355436]
[1729474138312,1.43905,69406.0,69405.0,0.1098492]
[1729474138703,1.43905,69406.0,69405.0,0.24355764]
[1729474139600,1.43905,69406.0,69405.0,0.1098492]
[1729474139806,1.43905,69406.0,69405.0,0.2435611]
[1729474140001,1.43905,69406.0,69405.0,0.1098492]
[1729474140214,1.43905,69406.0,69405.0,0.24356227]
[1729474140517,1.43905,69406.0,69405.0,0.1098492]
[1729474141015,1.87129,69406.0,69405.0,0.1098492]
[1729474143710,0.072054,69402.0,69398.0,0.072058]
[1729474144015,0.04424983,69401.0,69398.0,0.072058]
[1729474145027,0.04424983,69401.0,69396.0,0.02160573]
[1729474145217,0.04424983,69401.0,69399.0,0.072057]
[1729474145518,0.11630583,69401.0,69399.0,0.072057]
[1729474145718,0.04424983,69400.0,69399.0,0.072057]
[1729474145908,0.04424983,69400.0,69398.0,0.001]
[1729474146112,0.11630683,69399.0,69398.0,0.001]
[1729474146413,0.11630598,69399.0,69398.0,0.001]
[1729474147221,0.04424898,69399.0,69393.0,0.05810617]
[1729474147417,0.05170558,69401.0,69393.0,0.05810617]
[1729474147418,0.07206,69397.0,69393.0,0.05810617]
[1729474147627,0.04425091,69396.0,69393.0,0.05810617]
[1729474149621,0.12376158,69401.0,69393.0,0.05910617]
[1729474149622,0.04425091,69395.0,69393.0,0.05910617]
[1729474149818,0.04425091,69394.0,69393.0,0.06210617]
[1729474150314,0.04425091,69394.0,69393.0,0.06510617]
[1729474150717,0.072056,69401.0,69393.0,0.30868763]
[1729474151023,0.072056,69401.0,69398.0,0.08602953]
[1729474151219,0.072056,69401.0,69399.0,0.10985938]
[1729474151433,0.072056,69401.0,69400.0,0.10985938]
[1729474152427,0.072056,69401.0,69400.0,0.19588891]
[1729474153126,0.074056,69401.0,69400.0,0.19588891]
[1729474153431,0.075056,69401.0,69400.0,0.10985938]
[1729474155216,0.075056,69401.0,69400.0,0.1959643]
[1729474155532,0.075056,69401.0,69400.0,0.10985938]
[1729474156224,0.072051,69405.0,69401.0,0.072054]
[1729474156431,0.072051,69405.0,69402.0,0.24357227]
[1729474156627,0.072051,69405.0,69403.0,0.24357227]
[1729474156830,0.072051,69405.0,69404.0,0.24357227]
[1729474157726,0.072052,69404.0,69403.0,0.43258886]
[1729474158230,0.072052,69404.0,69403.0,0.3608]
[1729474158625,0.072052,69404.0,69403.0,0.43258886]
[1729474158820,0.073052,69404.0,69403.0,0.43258886]
[1729474159331,0.073052,69404.0,69403.0,0.3608]
[1729474159726,0.074052,69404.0,69403.0,0.3608]
[1729474160523,0.574052,69404.0,69403.0,0.3608]
[1729474161433,0.502,69404.0,69402.0,0.07178886]
[1729474161629,0.072053,69403.0,69402.0,0.43258886]
[1729474162732,0.072053,69403.0,69402.0,0.3608]
[1729474162929,0.073053,69403.0,69402.0,0.3608]
[1729474165831,0.16899399,69403.0,69402.0,0.3608]
[1729474170830,0.09693993,69403.0,69402.0,0.3608]
[1729474171032,0.5,69404.0,69402.0,0.3608]
[1729474171033,0.23347232,69404.0,69402.0,0.79308]
[1729474171232,0.23347232,69404.0,69403.0,0.504293]
[1729474171432,0.23347232,69404.0,69403.0,0.541793]
[1729474172941,0.14693573,69404.0,69403.0,0.78531788]
[1729474173134,0.14893573,69404.0,69403.0,0.78531788]
[1729474173535,0.14993573,69404.0,69403.0,0.78531788]
[1729474174137,0.14893573,69404.0,69403.0,0.78531788]
[1729474174433,0.14993573,69404.0,69403.0,0.65162237]
[1729474175637,0.14993573,69404.0,69403.0,0.65162204]
[1729474177437,0.14993573,69404.0,69403.0,1.01242204]
[1729474180343,0.14993573,69404.0,69403.0,0.97492204]
[1729474182440,0.14993573,69404.0,69403.0,0.54268204]
[1729474182850,0.09053573,69404.0,69403.0,1.57492204]
[1729474183050,0.3608,69434.0,69426.0,0.072029]
[1729474183051,0.0372,69434.0,69426.0,0.072029]
[1729474183238,0.0372,69434.0,69433.0,0.04298922]
[1729474183444,0.0372,69434.0,69433.0,0.04295707]
[1729474183741,0.0372,69434.0,69431.0,0.05731896]
[1729474184245,0.0402,69434.0,69430.0,0.41811896]
[1729474184446,0.0402,69434.0,69433.0,0.04293799]
[1729474184644,0.0442,69434.0,69433.0,0.04293799]
[1729474185551,0.0442,69434.0,69430.0,0.36208]
[1729474185552,0.0442,69434.0,69432.0,0.04293799]
[1729474186141,0.007,69434.0,69432.0,0.06533915]
[1729474186342,0.007,69434.0,69433.0,0.12934096]
[1729474186652,0.003,69434.0,69433.0,0.12934096]
[1729474186947,0.003,69434.0,69433.0,0.072022]
[1729474186948,0.006,69434.0,69433.0,0.072022]
[1729474187453,0.003,69434.0,69433.0,0.504102]
[1729474187652,0.006,69434.0,69433.0,0.504102]
[1729474187956,0.10188968,69434.0,69433.0,0.504102]
[1729474188138,0.28885645,69434.0,69433.0,0.504102]
[1729474188556,0.10188968,69434.0,69433.0,0.504102]
[1729474188739,0.18696677,69435.0,69433.0,0.504102]
[1729474188942,1.4191208,69452.0,69432.0,0.02240116]
[1729474188943,0.130343,69444.0,69443.0,0.072012]
[1729474189151,0.11605923,69444.0,69443.0,0.939412]
[1729474189451,0.22892856,69456.0,69443.0,0.939412]
[1729474189452,0.22892856,69456.0,69454.0,0.072]
[1729474189640,0.22892856,69456.0,69455.0,0.3608]
[1729474190047,0.0391,69458.0,69455.0,0.3608]
[1729474190267,0.0391,69458.0,69457.0,0.071997]
[1729474191948,0.0391,69458.0,69457.0,0.217797]
[1729474192157,0.0421,69458.0,69457.0,0.217797]
[1729474192653,0.05165312,69474.0,69457.0,0.217797]
[1729474192654,0.05165312,69474.0,69457.0,1.27179451]
[1729474192841,0.0372,69474.0,69473.0,0.432781]
[1729474193042,0.0372,69474.0,69473.0,0.578541]
[1729474193851,0.08339438,69474.0,69473.0,0.578541]
[1729474194052,0.08339436,69474.0,69473.0,0.578541]
[1729474194854,0.08339526,69474.0,69473.0,0.578541]
[1729474195848,0.0372,69474.0,69473.0,0.60091303]
[1729474197842,0.0372,69474.0,69473.0,0.60087303]
[1729474198455,0.0372,69474.0,69473.0,0.45515303]
[1729474200062,0.0372,69474.0,69473.0,0.38317203]
[1729474200354,0.071988,69466.0,69456.0,0.071998]
[1729474200552,0.469,69474.0,69456.0,0.071998]
[1729474200553,0.3608,69467.0,69456.0,0.071998]
[1729474200954,1.36,69465.0,69456.0,0.071998]
[1729474201152,1.36,69465.0,69454.0,0.14572]
[1729474201153,1.36,69465.0,69457.0,0.071997]
[1729474202149,0.3608,69467.0,69460.0,0.071994]
[1729474202454,0.3608,69467.0,69463.0,0.071991]
[1729474202754,1.36,69466.0,69465.0,0.071989]
[1729474202958,1.51495969,69466.0,69465.0,0.071989]
[1729474203253,0.09585826,69466.0,69465.0,0.071989]
[1729474203454,0.04420503,69466.0,69465.0,0.071989]
[1729474203856,1.40420503,69466.0,69465.0,0.434789]
[1729474204054,1.45585826,69466.0,69465.0,0.434789]
[1729474204358,0.09585826,69466.0,69465.0,0.434789]
[1729474204552,0.04420503,69466.0,69465.0,0.434789]
[1729474204754,0.04420503,69466.0,69465.0,0.45731084]
[1729474205351,0.04420503,69466.0,69465.0,0.45831084]
[1729474207660,0.04420062,69466.0,69465.0,0.45831084]
[1729474210852,0.18521925,69473.0,69472.0,0.071982]
[1729474211056,1.39808,69474.0,69473.0,0.071981]
[1729474211245,1.3972,69474.0,69473.0,0.071981]
[1729474212254,1.3972,69474.0,69471.0,0.3608]
[1729474212657,1.3972,69474.0,69465.0,0.23283084]
[1729474212861,0.002,69473.0,69465.0,0.23283084]
[1729474213059,0.002,69473.0,69465.0,0.09451084]
[1729474213264,0.002,69473.0,69465.0,0.23283084]
[1729474213459,0.3628,69473.0,69464.0,0.3608]
[1729474213762,0.3628,69473.0,69451.0,0.00215958]
[1729474213763,0.071992,69462.0,69451.0,0.00215958]
[1729474213972,0.3608,69456.0,69451.0,0.00215958]
[1729474214261,0.3608,69456.0,69451.0,0.02457256]
[1729474214566,0.3608,69456.0,69451.0,0.00215958]
[1729474214951,0.0361,69461.0,69451.0,0.00215958]
[1729474215151,0.0361,69461.0,69451.0,0.36295958]
[1729474216158,0.0361,69461.0,69451.0,0.38506183]
[1729474216458,0.0361,69461.0,69451.0,0.39106183]
[1729474216765,0.0747,69460.0,69451.0,0.39706183]
[1729474216952,0.0747,69460.0,69451.0,0.39490225]
[1729474217958,0.09586563,69459.0,69451.0,0.39490225]
[1729474218159,0.09586563,69458.0,69451.0,0.39490225]
[1729474218357,0.09586563,69457.0,69452.0,0.13832]
[1729474218664,0.09586563,69456.0,69452.0,0.13832]
[1729474218865,0.0747,69460.0,69451.0,0.39690225]
[1729474218866,0.09586563,69455.0,69451.0,0.39690225]
[1729474219065,0.0747,69460.0,69451.0,0.014]
[1729474219066,0.09586563,69454.0,69451.0,0.014]
[1729474219271,0.41990598,69459.0,69451.0,0.00560001]
[1729474219272,0.15497161,69453.0,69451.0,0.00560001]
[1729474219565,0.15497161,69452.0,69451.0,0.008]
[1729474219876,0.15497161,69452.0,69451.0,0.00720001]
[1729474220563,0.15497161,69452.0,69451.0,0.026]
[1729474221169,0.09586563,69452.0,69451.0,0.026]
[1729474221569,0.09587234,69452.0,69451.0,0.026]
[1729474221969,0.072005,69450.0,69438.0,0.36295997]
[1729474222164,0.09587234,69449.0,69438.0,0.36295997]
[1729474222369,0.09587234,69448.0,69438.0,0.36295997]
[1729474222561,0.072005,69450.0,69438.0,0.36295997]
[1729474222562,1.45587234,69447.0,69438.0,0.36295997]
[1729474222759,0.13177234,69446.0,69438.0,0.36295997]
[1729474222970,0.15497832,69445.0,69438.0,0.00215997]
[1729474223271,0.15497832,69444.0,69438.0,0.03015997]
[1729474223468,0.15497832,69443.0,69438.0,0.03015997]
[1729474223665,0.09587234,69442.0,69438.0,0.03015997]
[1729474223859,0.09587234,69441.0,69438.0,0.01615997]
[1729474224059,0.09587234,69440.0,69438.0,0.03015997]
[1729474224265,0.09587234,69439.0,69438.0,0.03015997]
[1729474224872,0.09587234,69439.0,69438.0,0.02714398]
[1729474225268,0.09587234,69439.0,69438.0,0.011]
[1729474225472,0.09587234,69439.0,69438.0,0.02]
[1729474225766,0.15497832,69439.0,69438.0,0.02]
[1729474225969,0.22976481,69445.0,69438.0,0.02]
[1729474226158,0.22976481,69445.0,69439.0,0.04286701]
[1729474226358,0.0359,69446.0,69439.0,0.04286701]
[1729474226564,0.0359,69446.0,69438.0,0.04686701]
[1729474227169,0.0381,69445.0,69438.0,0.04686701]
[1729474227361,0.0381,69445.0,69438.0,0.004]
[1729474227768,0.0381,69445.0,69438.0,0.04686701]
[1729474227975,0.0381,69445.0,69438.0,0.004]
[1729474228376,0.0381,69445.0,69436.0,0.06459509]
[1729474228572,0.0381,69445.0,69439.0,0.007]
[1729474228882,0.11011,69445.0,69439.0,0.007]
[1729474229177,0.10911,69445.0,69438.0,0.009]
[1729474229381,0.10911,69445.0,69438.0,0.003]
[1729474229576,0.10911,69445.0,69438.0,0.006]
[1729474229765,0.10911,69445.0,69438.0,0.003]
[1729474229766,0.0371,69445.0,69438.0,0.003]
[1729474229972,0.0371,69445.0,69439.0,0.003]
[1729474229973,0.072015,69440.0,69439.0,0.003]
[1729474230167,0.432815,69440.0,69439.0,0.003]
[1729474230473,0.432815,69440.0,69438.0,0.003]
[1729474230474,0.072016,69439.0,69438.0,0.003]
[1729474230679,0.072032,69424.0,69423.0,0.3608]
[1729474230868,0.43204,69439.0,69418.0,0.04286701]
[1729474230869,0.072035,69421.0,69418.0,0.04286701]
[1729474231066,0.072035,69421.0,69413.0,0.04286701]
[1729474231273,0.072035,69421.0,69412.0,0.40366701]
[1729474231476,0.072035,69421.0,69412.0,0.38258166]
[1729474231668,0.039,69423.0,69412.0,0.38258166]
[1729474231669,0.072037,69419.0,69412.0,0.38258166]
[1729474231875,0.3608,69422.0,69412.0,0.38258166]
[1729474232069,0.072037,69420.0,69418.0,0.014]
[1729474232275,0.072037,69419.0,69418.0,0.014]
[1729474232682,0.072037,69419.0,69412.0,0.014]
[1729474232683,0.001,69419.0,69412.0,0.014]
[1729474232880,0.07204,69416.0,69412.0,0.014]
[1729474233081,0.001,69419.0,69412.0,0.014]
[1729474233272,0.001,69419.0,69410.0,0.00215997]
[1729474233273,0.432843,69413.0,69410.0,0.00215997]
[1729474233572,0.3608,69413.0,69398.0,0.3608]
[1729474233779,0.3608,69413.0,69395.0,0.13836]
[1729474233780,0.038,69412.0,69395.0,0.13836]
[1729474233985,0.072056,69401.0,69395.0,0.13836]
[1729474235187,0.072056,69401.0,69395.0,0.02214539]
[1729474235483,0.072056,69401.0,69392.0,0.13836]
[1729474235881,0.072056,69401.0,69392.0,0.210425]
[1729474236182,0.073056,69401.0,69395.0,0.011]
[1729474236379,0.074056,69401.0,69395.0,0.019]
[1729474236576,0.074056,69401.0,69395.0,0.008]
[1729474237982,0.002,69401.0,69395.0,0.080061]
[1729474238385,0.002,69401.0,69395.0,0.094061]
[1729474241080,0.0365,69410.0,69395.0,0.094061]
[1729474241282,0.432851,69405.0,69395.0,0.094061]
[1729474241487,0.432851,69405.0,69395.0,0.13692801]
[1729474242192,0.432851,69405.0,69395.0,0.086061]
[1729474242383,0.3608,69405.0,69395.0,0.077061]
[1729474242577,0.072053,69403.0,69395.0,0.12992801]
[1729474243484,0.072053,69403.0,69397.0,0.04286701]
[1729474243686,0.073053,69403.0,69397.0,0.04286701]
[1729474243891,0.072055,69402.0,69397.0,0.04286701]
[1729474244494,0.072055,69402.0,69398.0,0.04286701]
[1729474244691,0.072055,69402.0,69397.0,0.04286701]
[1729474244891,0.072055,69402.0,69398.0,0.04286701]
[1729474245090,0.073055,69402.0,69398.0,0.04286701]
[1729474245589,0.073055,69402.0,69399.0,0.04286701]
[1729474246484,0.02977981,69402.0,69400.0,0.04286701]
[1729474246795,0.02977981,69402.0,69399.0,0.04286701]
[1729474246796,0.002,69402.0,69399.0,0.04286701]
[1729474247390,0.074055,69402.0,69401.0,0.04286701]
[1729474248091,0.0381,69409.0,69401.0,0.40110704]
[1729474248285,0.110147,69409.0,69408.0,0.09973441]
[1729474248487,0.110147,69409.0,69408.0,0.40110704]
[1729474248997,0.110147,69409.0,69408.0,0.50087515]
[1729474249397,0.111147,69409.0,69408.0,0.40710704]
[1729474249786,0.0391,69409.0,69408.0,0.40710704]
[1729474250394,0.111147,69409.0,69408.0,0.40710704]
[1729474250699,0.111147,69409.0,69408.0,0.52108922]
[1729474250891,0.112147,69409.0,69408.0,0.52708922]
[1729474251399,0.112147,69409.0,69408.0,0.41310704]
[1729474252702,0.112147,69409.0,69408.0,0.59451586]
[1729474252888,0.112147,69409.0,69408.0,0.41310704]
[1729474253288,0.112147,69409.0,69408.0,0.59451553]
[1729474254494,0.112147,69409.0,69408.0,0.72326074]
[1729474255612,0.112147,69409.0,69408.0,0.72309189]
[1729474256100,0.112147,69409.0,69408.0,0.012]
[1729474260510,0.002,69409.0,69408.0,0.012]
[1729474261797,0.002,69409.0,69408.0,0.084048]
[1729474261992,0.002,69409.0,69408.0,0.012]
[1729474262902,0.04624191,69409.0,69408.0,0.012]
[1729474263117,0.3608,69414.0,69408.0,0.81170241]
[1729474263118,0.34893353,69414.0,69408.0,0.81170241]
[1729474263294,0.072043,69413.0,69412.0,0.14366298]
[1729474263600,0.072043,69413.0,69412.0,0.40109985]
[1729474265597,0.072043,69413.0,69412.0,0.40309985]
[1729474265803,0.072043,69413.0,69408.0,0.001]
[1729474265804,0.4322,69412.0,69394.0,0.14366298]
[1729474266001,0.432858,69398.0,69390.0,0.15735525]
[1729474266202,0.432858,69398.0,69382.0,0.3608]
[1729474266203,0.3608,69391.0,69382.0,0.3608]
[1729474266409,1.36,69390.0,69387.0,0.10048964]
[1729474266600,1.36,69390.0,69382.0,0.3608]
[1729474266601,1.36,69390.0,69384.0,0.10048964]
[1729474266792,1.36,69390.0,69383.0,0.10048964]
[1729474266999,1.432067,69390.0,69382.0,0.46128964]
[1729474267192,0.07207,69387.0,69382.0,0.46128964]
[1729474267402,0.3608,69384.0,69379.0,0.10048964]
[1729474267703,0.31750826,69384.0,69382.0,0.011]
[1729474269298,0.31750826,69384.0,69382.0,0.009]
[1729474269808,0.31850826,69384.0,69382.0,0.023]
[1729474270200,0.31950826,69384.0,69382.0,0.022]
[1729474270401,0.31950826,69384.0,69383.0,0.08594764]
[1729474270600,0.31950826,69384.0,69382.0,0.10794764]
[1729474271107,0.23292029,69384.0,69382.0,0.12248964]
[1729474271497,0.23292029,69384.0,69382.0,0.022]
[1729474272410,0.23292029,69384.0,69383.0,0.009]
[1729474273206,0.23192029,69384.0,69382.0,0.014]
[1729474273411,0.23292029,69384.0,69382.0,0.023]
[1729474274812,0.23292029,69384.0,69383.0,0.014]
[1729474275002,0.23192029,69384.0,69383.0,0.014]
[1729474275203,0.23292029,69384.0,69383.0,0.023]
[1729474275395,0.23292029,69384.0,69383.0,0.009]
[1729474275810,0.23292029,69384.0,69383.0,0.14275714]
[1729474276107,0.23292029,69384.0,69383.0,0.22883114]
[1729474276413,0.16076547,69384.0,69383.0,0.22883114]
[1729474277112,0.16076547,69384.0,69383.0,0.22883073]
[1729474278116,0.16076547,69384.0,69383.0,0.095074]
[1729474279507,0.19607852,69384.0,69383.0,0.095074]
[1729474281109,0.26815152,69384.0,69383.0,0.023]
[1729474281810,0.26815202,69384.0,69383.0,0.023]
[1729474283016,0.10938655,69384.0,69383.0,0.023]
[1729474283616,0.002,69384.0,69383.0,0.095074]
[1729474285512,0.03631085,69384.0,69383.0,0.086074]
[1729474285812,0.03731085,69384.0,69383.0,0.086074]
[1729474286007,0.072062,69396.0,69383.0,0.10362581]
[1729474286207,0.072062,69396.0,69394.0,0.072063]
[1729474286412,0.0393,69397.0,69396.0,0.072061]
[1729474286714,1.41703093,69397.0,69396.0,0.072061]
[1729474288020,1.38173093,69397.0,69396.0,0.072061]
[1729474288516,1.368,69397.0,69396.0,0.072061]
[1729474288715,0.008,69397.0,69396.0,0.072061]
[1729474288917,0.072047,69409.0,69404.0,0.072052]
[1729474289120,0.07205,69406.0,69404.0,0.072052]
[1729474289421,1.43205,69406.0,69404.0,0.072052]
[1729474289609,1.43285,69406.0,69404.0,0.072052]
[1729474290017,0.07421342,69405.0,69403.0,0.04289225]
[1729474290209,0.072053,69404.0,69402.0,0.04289225]
[1729474290412,0.00216242,69405.0,69395.0,0.04289225]
[1729474290609,0.07206,69397.0,69394.0,0.04289225]
[1729474290816,0.07206,69397.0,69390.0,0.0367]
[1729474290817,0.07206,69397.0,69393.0,0.47575525]
[1729474291415,0.00516242,69405.0,69393.0,0.47575525]
[1729474291416,0.004,69404.0,69402.0,0.072054]
[1729474291621,0.072056,69401.0,69400.0,0.04292301]
[1729474291815,0.072056,69401.0,69399.0,0.04292301]
[1729474292123,0.072056,69401.0,69395.0,0.05718967]
[1729474292124,0.07206,69397.0,69395.0,0.05718967]
[1729474292511,0.0377,69400.0,69394.0,0.05718967]
[1729474292734,0.072062,69395.0,69394.0,0.05718967]
[1729474293224,0.11631602,69395.0,69393.0,0.3608]
[1729474293430,0.04425402,69394.0,69393.0,0.3608]
[1729474293913,0.04425402,69394.0,69389.0,0.072067]
[1729474294218,0.07956083,69393.0,69388.0,0.00216175]
[1729474294423,0.07956083,69392.0,69388.0,0.00216175]
[1729474294724,0.08941047,69400.0,69388.0,0.00216175]
[1729474294725,0.072067,69390.0,69388.0,0.00216175]
[1729474294916,0.07956083,69389.0,69388.0,0.00216175]
[1729474295225,0.15162883,69389.0,69388.0,0.00216175]
[1729474295612,0.07956083,69389.0,69388.0,0.00216175]
[1729474295915,0.0795648,69389.0,69388.0,0.00216175]
[1729474296515,0.0795648,69389.0,69388.0,0.36296175]
[1729474296725,0.0795648,69389.0,69388.0,0.00216175]
[1729474297019,0.0815648,69389.0,69388.0,0.00216175]
[1729474297218,0.0815648,69389.0,69388.0,0.36296175]
[1729474297415,0.0815648,69389.0,69388.0,0.43503075]
[1729474297619,0.0815648,69389.0,69388.0,0.36296175]
[1729474297620,0.0835648,69389.0,69388.0,0.36296175]
[1729474300628,0.04825559,69389.0,69388.0,0.36296175]
[1729474300824,0.08356312,69389.0,69388.0,0.36296175]
[1729474301218,0.004,69389.0,69388.0,0.36296175]
[1729474305427,0.004,69389.0,69388.0,0.40590219]
[1729474305734,0.076068,69389.0,69388.0,0.3608]
[1729474306626,1.436068,69389.0,69388.0,0.3608]
[1729474307532,1.45347557,69389.0,69388.0,0.3608]
[1729474307926,0.072069,69388.0,69383.0,0.04294044]
[1729474308135,0.072069,69388.0,69382.0,0.072075]
[1729474308136,0.07956853,69387.0,69382.0,0.072075]
[1729474308629,0.07956853,69387.0,69383.0,0.072074]
[1729474308838,0.072071,69386.0,69383.0,0.072074]
[1729474309133,0.07956853,69385.0,69383.0,0.072074]
[1729474310428,0.07956853,69385.0,69383.0,0.074074]
[1729474310825,0.07956853,69385.0,69383.0,0.076074]
[1729474315032,0.03530992,69384.0,69383.0,0.076074]
[1729474315229,0.04425859,69384.0,69383.0,0.076074]
[1729474315432,0.07956851,69384.0,69383.0,0.076074]
[1729474315926,0.03530992,69384.0,69383.0,0.076074]
[1729474316127,0.07956851,69384.0,69383.0,0.076074]
[1729474316332,0.03599662,69386.0,69383.0,0.18695655]
[1729474316529,0.03599662,69386.0,69384.0,0.10988255]
[1729474316730,0.03599662,69386.0,69385.0,0.10988255]
[1729474319338,0.03599662,69386.0,69385.0,0.11088255]
[1729474319538,0.03599662,69386.0,69385.0,0.11188255]
[1729474322237,1.36088,69389.0,69385.0,0.11188255]
[1729474322440,0.0405,69399.0,69397.0,0.072059]
[1729474322738,0.00216245,69400.0,69399.0,0.072057]
[1729474322935,0.00216245,69400.0,69399.0,0.18192616]
[1729474323144,0.00216245,69400.0,69399.0,0.18192162]
[1729474323332,0.072053,69403.0,69399.0,0.072057]
[1729474323933,0.072053,69403.0,69401.0,0.072055]
[1729474324140,1.36076,69404.0,69403.0,0.072053]
[1729474324442,1.36,69404.0,69403.0,0.072053]
[1729474324641,0.3608,69408.0,69403.0,0.0391]
[1729474324831,0.072043,69413.0,69409.0,0.072046]
[1729474325339,1.36,69412.0,69409.0,0.072046]
[1729474325541,1.432044,69412.0,69409.0,0.072046]
[1729474326351,1.36,69412.0,69403.0,0.11987677]
[1729474326653,1.36,69412.0,69402.0,0.3608]
[1729474326654,0.072052,69404.0,69402.0,0.3608]
[1729474326839,0.072055,69402.0,69399.0,0.11513377]
[1729474327040,0.072056,69401.0,69399.0,0.072057]
[1729474327234,0.072057,69399.0,69394.0,0.11513877]
[1729474327438,0.072057,69399.0,69393.0,0.40387677]
[1729474327646,0.072057,69399.0,69395.0,0.072061]
[1729474328137,0.0393,69403.0,69398.0,0.072058]
[1729474328640,0.0393,69403.0,69393.0,0.3608]
[1729474328840,0.076057,69399.0,69394.0,0.072063]
[1729474329045,0.004,69399.0,69393.0,0.40387677]
[1729474329237,0.004,69399.0,69390.0,0.0392]
[1729474329446,0.072065,69393.0,69387.0,0.432869]
[1729474329644,0.072065,69393.0,69387.0,0.3608]
[1729474330345,0.072065,69393.0,69388.0,0.072069]
[1729474330745,1.36,69392.0,69388.0,0.072069]
[1729474331144,1.36,69392.0,69391.0,0.072066]
[1729474331346,1.36,69392.0,69389.0,0.1906261]
[1729474331347,0.19043836,69392.0,69389.0,0.1906261]
[1729474331545,0.19043836,69391.0,69390.0,0.072067]
[1729474331846,0.13127097,69391.0,69390.0,0.072067]
[1729474332057,0.0795601,69391.0,69390.0,0.504387]
[1729474332242,0.0183601,69391.0,69390.0,0.504387]
[1729474332437,0.05916739,69406.0,69390.0,0.3608]
[1729474332637,0.04096164,69414.0,69390.0,0.3608]
[1729474332638,0.04096164,69414.0,69401.0,0.3608]
[1729474332842,1.432049,69408.0,69403.0,0.072053]
[1729474333042,1.49121639,69408.0,69403.0,0.072053]
[1729474333655,1.432049,69408.0,69403.0,0.072053]
[1729474334246,1.435049,69408.0,69403.0,0.072053]
[1729474334546,1.363,69408.0,69405.0,0.072051]
[1729474334751,0.003,69408.0,69407.0,0.072049]
[1729474334945,0.007,69408.0,69407.0,0.072049]
[1729474335448,0.05869767,69408.0,69407.0,0.072049]
[1729474336942,0.05569767,69408.0,69407.0,0.072049]
[1729474337138,0.05869767,69408.0,69407.0,0.072049]
[1729474337448,0.10294002,69408.0,69407.0,0.06309101]
[1729474338558,0.007,69408.0,69407.0,0.06309101]
[1729474338749,0.007,69408.0,69406.0,0.01753093]
[1729474339048,0.007,69408.0,69402.0,0.0778]
[1729474339453,0.007,69408.0,69402.0,0.0396]
[1729474339663,0.007,69408.0,69407.0,0.3608]
[1729474340153,0.00216164,69414.0,69407.0,0.79304]
[1729474340453,0.112335,69421.0,69413.0,0.3608]
[1729474340454,1.36,69420.0,69413.0,0.3608]
[1729474341849,1.364,69420.0,69413.0,0.3608]
[1729474342253,0.004,69420.0,69413.0,0.3608]
[1729474342553,0.072024,69431.0,69419.0,0.432836]
[1729474342856,1.36,69430.0,69425.0,0.3608]
[1729474343543,0.0801,69432.0,69425.0,0.3608]
[1729474343747,0.002,69431.0,69425.0,0.3608]
[1729474343948,0.001,69430.0,69425.0,0.3608]
[1729474344453,0.001,69430.0,69426.0,0.072029]
[1729474344647,0.003,69430.0,69426.0,0.072029]
[1729474345047,0.002,69430.0,69428.0,0.072027]
[1729474345254,0.00216043,69446.0,69428.0,0.672027]
[1729474345555,0.072014,69441.0,69434.0,0.3608]
[1729474345757,0.072016,69439.0,69434.0,0.3608]
[1729474346952,0.00216043,69446.0,69434.0,0.3608]
[1729474347155,0.072017,69438.0,69434.0,0.3608]
[1729474347946,0.072019,69436.0,69434.0,0.3608]
[1729474348146,0.002,69439.0,69426.0,0.01808559]
[1729474348147,0.072026,69430.0,69426.0,0.01808559]
[1729474348351,0.0412,69438.0,69425.0,0.3608]
[1729474348352,0.072027,69429.0,69425.0,0.3608]
[1729474349162,0.072027,69429.0,69425.0,0.37842131]
[1729474350154,0.074027,69429.0,69425.0,0.37842131]
[1729474351159,0.074027,69429.0,69425.0,0.01762131]
[1729474351363,0.072012,69444.0,69426.0,0.79292]
[1729474351655,0.00216043,69446.0,69437.0,0.3608]
[1729474351861,0.00216043,69446.0,69432.0,0.3608]
[1729474352260,0.072018,69438.0,69432.0,0.3608]
[1729474352555,0.00216043,69446.0,69432.0,0.3608]
[1729474352758,0.072022,69433.0,69432.0,0.3608]
[1729474353658,0.04422616,69433.0,69432.0,0.3608]
[1729474353860,0.04422616,69433.0,69432.0,0.81249501]
[1729474354258,0.04422616,69433.0,69432.0,0.88929501]
[1729474355666,0.04622616,69433.0,69432.0,0.88929501]
[1729474356356,0.04422616,69433.0,69432.0,0.85509501]
[1729474356557,0.04622616,69433.0,69432.0,0.85509501]
[1729474356757,0.04622616,69433.0,69432.0,0.38041501]
[1729474358374,0.04622616,69433.0,69432.0,0.38141501]
[1729474358875,0.04422616,69433.0,69432.0,0.38341501]
[1729474359059,0.04422616,69433.0,69432.0,0.81549501]
[1729474359254,0.00216043,69446.0,69432.0,0.81549501]
[1729474359255,0.00216043,69446.0,69445.0,0.07201]
[1729474360680,0.00416043,69446.0,69445.0,0.07201]
[1729474361961,0.002,69446.0,69440.0,0.3608]
[1729474362165,0.0426,69448.0,69440.0,0.432814]
[1729474362370,0.002,69446.0,69440.0,0.3608]
[1729474362566,0.002,69446.0,69442.0,0.072013]
[1729474363075,0.0426,69448.0,69442.0,0.072013]
[1729474363571,0.001,69446.0,69442.0,0.072013]